Cogmind - Beta 13 X1 @@@ ROGUE MODE // 2023.10.09 @ 15:37:26 Player: maxwell Result: Self-destructed Performance ------------- Evolutions (9) 4500 Regions Visited (32) 6400 Robots Destroyed (326) 1630 Value Destroyed (14656) 14656 Prototype IDs (57) 1140 Alien Tech Used (4) 800 Bonus (14536) 14536 TOTAL SCORE: 43662 Bonus ------- High Alert Combat Kills 2286 Follower Combat Kills 5265 Entered Garrisons 200 Met Data Miner 300 Met Imprinter 300 Was Imprinted 300 Met Warlord at Base 500 MAIN.C Attacked Warlord 500 A7 Reached Mainframe 300 Met R17 at Cetus 500 Used Core Reset Matrix 3000 Met Sigix 2000 Friendly Fire -915 Cogmind --------- Core Integrity 659/1600 Matter 300/300 Energy 99/100 System Corruption 11% Temperature Cool (0) Movement Core (50) Location -1/Access Parts ------- > --- POWER (3) -------- (None) > --- PROPULSION (8) --- Centrium Leg > --- UTILITY (12) ----- Advanced Visual Processing Unit > --- WEAPON (2) ------- (None) > --- INVENTORY (5) ---- Sigix Containment Pod Peak State ------------ > --- POWER ------------ Light Antimatter Reactor Particle Reactor > --- PROPULSION ------- Enhanced Flexi-carbon Leg Enhanced Flexi-carbon Leg Myomer Leg Myomer Leg Myomer Leg Myomer Leg Biometal Leg Enhanced Biometal Leg > --- UTILITY ---------- High-capacity Storage Unit Wardrone Bay > --- WEAPON ----------- Sigix Broadsword > --- INVENTORY -------- Improved Fusion Compressor Experimental Heat Sink Matter Compressor Long-range Sensor Array Quantum Capacitor Advanced Transmission Jammer Experimental Cloaking Device Phase Armor Graphene Brace Experimental Focal Shield Experimental Thermal Shield Improved Dynamic Insulation System Advanced Drone Bay Subatomic Replicator Advanced Variable Charge Gun Neutron Cannon Improved Proton Missile Launcher [Rating: 223] Favorites ----------- Power Improved Deuterium Engine Engine Improved Deuterium Engine Power Core Fusion Compressor Reactor Vortex Chain Reactor Propulsion Light Treads Treads Light Treads Leg Flexi-carbon Leg Wheel Compact Wheel Hover Unit Antigrav System Flight Unit Improved Q-thruster Utility High-capacity Storage Unit Device Experimental Heat Sink Storage High-capacity Storage Unit Processor Advanced Terrain Scan Processor Hackware Hacking Suite Protection Medium Reactive Plating Artifact Phase Armor Weapon Enhanced Autogun Energy Gun Zionite Laser-S Energy Cannon Cooled Particle Cannon Ballistic Gun Enhanced Autogun Launcher Mini Smartbomb Launcher Impact Weapon Heavy Mace Slashing Weapon Sigix Broadsword Piercing Weapon Vortex Lance Build | -11 -10 -10 -9 -8 -7 -7 -7 -7 -6 -6 -6 -6 -6 -5 -5 -5 -5 -5 -5 -5 -4 -4 -4 -4 -4 -4 -4 -3 -3 -2 -2 -1 ------- Run | Jun Mat Min Mat Mat Fac Low Low Zio Pro Fac Low Low Dat Pro Fac Was Fac Upp Upp War Pro Fac Ext Cet Arc Hub Gar Res Qua Res Tes Acc Slots Evolved 18 | . . . 2 2 2 . . . . 2 . . . . 2 . . . . . . 2 . . . . . 2 . 2 . 2 Power 2 | . . . . . . . . . . 1 . . . . . . . . . . . . . . . . . . . 1 . . Propulsion 6 | . . . 1 1 1 . . . . 1 . . . . . . . . . . . . . . . . . 2 . . . . Utility 10 | . . . 1 1 1 . . . . . . . . . 2 . . . . . . 2 . . . . . . . 1 . 2 Weapon . | . . . . . . . . . . . . . . . . . . . . . . . . . . . . . . . . . Parts Attached 467 | . 6 2 26 23 46 5 14 4 5 32 17 19 2 12 5 . 72 11 16 27 4 2 4 1 1 7 18 2 16 31 19 18 Power 36 | . . . 1 1 2 1 . . . 3 2 3 . . . . 7 . 1 1 . . . . . . 3 . 1 4 4 2 Engine 13 | . . . 1 1 1 1 . . . 2 . 1 . . . . 5 . 1 . . . . . . . . . . . . . Core 9 | . . . . . 1 . . . . 1 2 2 . . . . 1 . . . . . . . . . 1 . . . 1 . Reactor 14 | . . . . . . . . . . . . . . . . . 1 . . 1 . . . . . . 2 . 1 4 3 2 Propulsion 120 | . 3 1 7 10 14 . 4 . . 12 . 5 . 3 . . 16 1 3 10 . . 2 . 1 4 4 2 2 5 2 9 Treads 44 | . 3 1 6 10 14 . 4 . . 4 . . . . . . . . 1 . . . . . . . . . . . . 1 Leg 65 | . . . 1 . . . . . . 6 . 4 . 3 . . 15 1 2 10 . . 2 . 1 4 4 2 2 5 1 2 Wheel 5 | . . . . . . . . . . 2 . 1 . . . . 1 . . . . . . . . . . . . . . 1 Hover 4 | . . . . . . . . . . . . . . . . . . . . . . . . . . . . . . . . 4 Flight 2 | . . . . . . . . . . . . . . . . . . . . . . . . . . . . . . . 1 1 Utility 188 | . 3 1 6 5 20 2 8 2 2 9 9 10 . 6 4 . 27 10 6 8 3 1 . 1 . 3 6 . 12 16 4 4 Device 128 | . . 1 . 1 9 2 5 1 2 4 5 7 . 6 2 . 20 10 5 4 3 1 . 1 . 3 6 . 10 14 4 2 Storage 8 | . 2 . 1 . 1 . . . . 1 . . . . . . . . . . . . . . . . . . 1 1 . 1 Processor 12 | . . . . . 1 . . . . 2 2 . . . . . 2 . . 3 . . . . . . . . . 1 . 1 Hackware 3 | . . . . 1 2 . . . . . . . . . . . . . . . . . . . . . . . . . . . Protection 36 | . 1 . 5 3 7 . 3 1 . 2 2 3 . . 2 . 5 . 1 1 . . . . . . . . . . . . Artifact 1 | . . . . . . . . . . . . . . . . . . . . . . . . . . . . . 1 . . . Weapon 123 | . . . 12 7 10 2 2 2 3 8 6 1 2 3 1 . 22 . 6 8 1 1 2 . . . 5 . 1 6 9 3 Energy Gun 24 | . . . 1 . . . . . . . . . . . . . 7 . 2 4 . . 2 . . . 1 . . 3 2 2 Energy Cannon 39 | . . . 1 1 . . . . . 6 3 1 2 2 1 . 6 . 1 2 . 1 . . . . 3 . . 3 5 1 Ballistic Gun 27 | . . . 10 5 6 2 1 1 1 1 . . . . . . . . . . . . . . . . . . . . . . Ballistic Cannon . | . . . . . . . . . . . . . . . . . . . . . . . . . . . . . . . . . Launcher 28 | . . . . 1 2 . 1 . 2 1 3 . . 1 . . 9 . 3 1 1 . . . . . 1 . . . 2 . Special Weapon . | . . . . . . . . . . . . . . . . . . . . . . . . . . . . . . . . . Impact Weapon 3 | . . . . . 2 . . 1 . . . . . . . . . . . . . . . . . . . . . . . . Slashing Weapon 1 | . . . . . . . . . . . . . . . . . . . . . . . . . . . . . 1 . . . Piercing Weapon 1 | . . . . . . . . . . . . . . . . . . . . 1 . . . . . . . . . . . . Special Melee Weapon . | . . . . . . . . . . . . . . . . . . . . . . . . . . . . . . . . . Unidentified Prototypes 45 | . . . 3 2 . . . 1 . 1 1 . . . . . 10 . . 10 . . . . . . 2 . 6 3 6 . Corrupted Parts 3 | . . . . . . . . . . . . . . . . . . . 2 . . . . . . . . . . . . 1 System Corruption 21 | . . . . . . . . . . . . . . . . . . . 20 . . . . . . . . . . . . 1 Parts Lost 110 | . 1 1 2 1 11 1 5 . . 2 3 3 . 3 1 . 13 2 12 . 1 . . 1 . . 3 . 5 11 11 17 Power 16 | . . . 1 . 1 . . . . . 1 1 . 1 . . 1 . 2 . . . . . . . 1 . 1 1 3 2 Propulsion 53 | . 1 1 1 1 6 . 3 . . 2 1 2 . 1 . . 7 1 6 . . . . . . . . . 3 5 3 9 Utility 26 | . . . . . 3 . 2 . . . . . . . 1 . 3 1 2 . 1 . . 1 . . 1 . . 4 4 3 Weapon 15 | . . . . . 1 1 . . . . 1 . . 1 . . 2 . 2 . . . . . . . 1 . 1 1 1 3 Highest Loss Streak 10 | . 1 1 1 1 3 1 4 . . 2 2 1 . 1 1 . 6 2 5 . 1 . . 1 . . 3 . 5 3 10 7 To Critical Strikes . | . . . . . . . . . . . . . . . . . . . . . . . . . . . . . . . . . Average Slot Usage (%) 90 | . 98 99 96 98 96 92 93 100 100 93 93 97 86 95 94 94 92 99 68 82 92 85 89 89 89 88 91 89 68 75 57 27 Engine 5 | . 14 14 10 9 4 7 7 7 7 11 . 3 6 6 5 5 4 5 2 5 . . . . . . . . . . . . Core 1 | . . . . . 2 . . . . 1 11 9 6 1 . . . 5 1 . . . . . . . 1 . . . . . Reactor 1 | . . . . . . . . . . . . . . . . . 1 . . 2 5 5 5 5 5 5 6 9 9 11 9 2 Treads 14 | . 21 27 31 36 37 38 36 38 38 6 . . . . . . . . . 4 . . . . . . . . . . . 1 Leg 16 | . 5 . . . . . . . . 26 26 31 40 39 35 35 33 34 14 17 35 31 31 31 31 30 31 32 35 21 15 5 Device 16 | . . 13 11 11 13 15 13 15 15 13 10 5 6 6 17 17 18 22 22 23 21 22 26 26 26 26 30 28 10 28 22 1 Storage 6 | . 14 14 11 9 7 7 7 7 7 6 6 6 6 6 5 5 5 5 5 5 5 5 5 5 5 5 5 4 4 4 2 1 Processor 4 | . . . . . . . . . . 3 10 13 13 13 5 5 7 5 5 5 11 10 10 10 10 9 5 4 . 2 . 2 Protection 6 | . 12 . 9 13 9 7 10 15 15 9 4 6 6 6 11 11 4 5 4 2 . . . . . . . . . . . . Energy Gun 2 | . 14 14 . . . . . . . . . . . . . . 4 11 5 7 5 5 5 5 5 4 . . . 1 . 2 Energy Cannon 2 | . . . . . . . . . . 8 8 11 . 12 11 11 4 . . 1 . . . . . . 4 4 1 5 4 1 Ballistic Gun 5 | . 14 14 20 17 14 15 14 14 9 3 . . . . . . . . . . . . . . . . . . . . . . Launcher 1 | . . . . . . . . . 4 . 3 1 . . . . 1 . 1 1 5 5 5 5 5 5 4 4 1 . . . Naked Turns 75 | . . . . . . . . . . . . . . . . . . . . . . . . . . . . . . . 75 . Heaviest Build 137 | 13 49 49 55 96 87 81 90 85 91 115 95 85 83 83 101 99 100 81 77 112 105 111 106 106 97 102 109 96 137 123 131 39 Greatest Support 214 | 20 40 40 60 83 108 108 116 116 116 146 26 110 110 118 118 118 119 119 114 160 160 160 170 170 170 168 171 189 214 168 141 60 Greatest Overweight (x) 17 | . 1 1 1 1 1 . 1 . . 9 5 5 . . . . 1 . 17 2 . . . . . . . . . 1 4 1 Average Overweight (x) . | . . 1 . . . . . . . . 4 1 . . . . . . 1 1 . . . . . . . . . . . . Largest Inventory Capacity 20 | . 20 20 20 20 20 20 20 20 20 20 20 20 20 20 20 20 20 20 20 20 20 20 20 20 20 20 20 20 20 20 20 5 Average Capacity 19 | . 13 20 20 20 20 20 20 20 20 20 20 20 20 20 20 20 20 20 20 20 20 20 20 20 20 20 20 20 20 20 16 5 Most Carried 20 | . 10 9 20 20 20 20 20 20 20 20 20 20 20 20 19 17 20 20 19 20 20 19 20 20 19 20 20 20 20 14 19 5 Average Carried 17 | . 7 7 14 19 19 19 19 19 19 18 19 19 20 19 16 17 17 19 17 17 19 19 19 19 19 19 18 19 18 9 13 2 Final Capacity 20 | 8 20 20 20 20 20 20 20 20 20 20 20 20 20 20 20 20 20 20 20 20 20 20 20 20 20 20 20 20 20 20 5 5 Final Carried 20 | 6 7 9 20 20 20 20 19 19 20 19 19 20 20 20 17 17 20 19 16 20 19 19 19 19 19 20 19 20 14 13 5 2 Class Distribution -------------------- 74% | Scavenger-Mutant 23% | Mutant Dominant Class ---------------- Mutant | -10/Materials Mutant | -10/Mines Mutant | -9/Materials Scavenger-Mutant | -8/Materials Scavenger-Mutant | -7/Factory Scavenger-Mutant | -7/Lower Caves Scavenger-Mutant | -7/Lower Caves Scavenger-Mutant | -7/Zion Scavenger-Mutant | -6/Proximity Caves Mutant | -6/Factory Mutant | -6/Lower Caves Scavenger-Mutant | -6/Lower Caves Scavenger-Mutant | -6/Data Miner Scavenger-Mutant | -5/Proximity Caves Scavenger-Mutant | -5/Factory Scavenger-Mutant | -5/Waste Scavenger-Mutant | -5/Factory Scavenger-Mutant | -5/Upper Caves Scavenger-Mutant | -5/Upper Caves Scavenger-Mutant | -5/Warlord Scavenger-Mutant | -4/Proximity Caves Scavenger-Mutant | -4/Factory Scavenger-Mutant | -4/Extension Commander-Mutant | -4/Cetus Scavenger-Mutant | -4/Archives Scavenger-Mutant | -4/Hub_04(d) Scavenger-Mutant | -4/Garrison Scavenger-Mutant | -3/Research Scavenger-Mutant | -3/Quarantine Scavenger-Mutant | -2/Research Scavenger-Mutant | -2/Testing Scavenger-Mutant | -1/Access Resources | -11 -10 -10 -9 -8 -7 -7 -7 -7 -6 -6 -6 -6 -6 -5 -5 -5 -5 -5 -5 -5 -4 -4 -4 -4 -4 -4 -4 -3 -3 -2 -2 -1 ----------- Run | Jun Mat Min Mat Mat Fac Low Low Zio Pro Fac Low Low Dat Pro Fac Was Fac Upp Upp War Pro Fac Ext Cet Arc Hub Gar Res Qua Res Tes Acc Matter Collected 10651 | 194 113 39 493 604 1657 233 442 40 251 793 472 567 . 386 98 . 1310 223 254 308 273 . 467 126 . 154 339 . 110 347 184 174 Remotely 962 | . . . . . 736 . . . . 128 . 98 . . . . . . . . . . . . . . . . . . . . Salvage Created 13515 | . 336 66 919 717 1956 161 556 . 196 1338 484 293 . 325 50 . 1207 312 790 . 177 . 209 216 . 367 640 51 . 1515 332 302 Parts 622 | . 29 6 55 47 113 11 19 . 8 57 28 13 . 18 2 . 45 12 16 . 5 . 11 7 . 18 20 . . 64 3 15 Haulers Intercepted 14 | . 2 . 3 4 3 . . . . 1 1 . . . . . . . . . . . . . . . . . . . . . Recyclers Shooed 11 | . . . 1 1 1 . . . . 4 . . . . . . 3 . . . . . . . . . . . . 1 . . Parts Field Recycled . | . . . . . . . . . . . . . . . . . . . . . . . . . . . . . . . . . Retrieved Matter . | . . . . . . . . . . . . . . . . . . . . . . . . . . . . . . . . . Parts Self-Destructed 121 | . . . . . . 11 21 6 14 . 17 12 . 18 . . . 11 11 . . . . . . . . . . . . . Prevented 10 | . . . . . . . . . 5 . . . . . . . . . 5 . . . . . . . . . . . . . Kills | -11 -10 -10 -9 -8 -7 -7 -7 -7 -6 -6 -6 -6 -6 -5 -5 -5 -5 -5 -5 -5 -4 -4 -4 -4 -4 -4 -4 -3 -3 -2 -2 -1 ------- Run | Jun Mat Min Mat Mat Fac Low Low Zio Pro Fac Low Low Dat Pro Fac Was Fac Upp Upp War Pro Fac Ext Cet Arc Hub Gar Res Qua Res Tes Acc Combat Hostiles Destroyed 266 | . 11 5 12 15 37 3 8 . 8 14 19 6 . 10 1 . 27 7 12 . 13 . 3 4 . 6 16 1 . 19 4 5 Guns 112 | . 11 5 12 15 28 3 6 . . . . . . . . . 6 7 6 . 3 . 1 . . 6 . . . 2 . 1 Cannons 59 | . . . . . . . . . . 11 4 4 . 3 1 . 4 . . . . . . . . . 12 1 . 13 2 4 AOE 84 | . . . . . 9 . 2 . 8 2 15 2 . 5 . . 17 . 4 . 10 . 2 4 . . 4 . . . . . Classes Destroyed 19 | . 4 . 4 2 4 . . . . 1 . 1 . 1 . . 1 . . . . . . . . 1 . . . . . . Worker 11 | . . . 1 . 4 . . . . 2 . . . . . . 3 . . . . . 1 . . . . . . . . . Builder 9 | . . . . 1 1 . . . . 4 . . . . . . . . . . . . 1 . . . . . . 2 . . Hauler 15 | . 2 . 3 4 3 . . . . 1 1 . . . . . . . . . . . . . . . . . . 1 . . Recycler 11 | . . . 2 . 4 . . . . 3 . . . . . . 2 . . . . . . . . . . . . . . . Operator 2 | . . . 1 . . . . . . . . . . . . . . . . . . . . . . 1 . . . . . . Watcher 11 | . 2 . 1 . 1 . . . . 1 . . . . . . 1 . . . . . . . . 1 . . . 1 1 2 Swarmer 81 | . 9 5 . 7 17 . . . 3 2 11 . . 5 . . 8 3 1 . 6 . . . . . . . . . . 4 Grunt 88 | . 2 . 7 5 8 . 6 . 5 3 5 . . 2 . . 10 4 7 . 4 . . 4 . 2 6 1 . 6 1 . Brawler 6 | . . . . . . . . . . 2 . . . . . . 1 . 1 . . . . . . . 1 . . 1 . . Duelist 5 | . . . . . 1 . 2 . . . . . . . . . 1 . . . . . . . . . 1 . . . . . Sentry 25 | . . . 5 2 5 1 . . . 4 . . . . . . 2 . 1 . . . . . . . 3 . . 2 . . Demolisher 2 | . . . . . . . . . . . . . . . . . . . . . . . . . . 2 . . . . . . Specialist 7 | . . . . . 2 . . . . . . 3 . . . . . . . . . . . . . 2 . . . . . . Hunter 23 | . . . . 1 . 1 . . . 1 2 2 . 2 . . . . 2 . 2 . 2 . . . 2 . . 3 3 . Programmer 23 | . . . . . 3 1 . . . 2 1 . . . 1 . 4 . . . 1 . . . . . 2 . . 7 . 1 Heavy 1 | . . . . . 1 . . . . . . . . . . . . . . . . . . . . . . . . . . . Behemoth 3 | . . . . . . . . . . . . . . 1 . . . . . . . . 1 . . . 1 . . . . . Z-Light 1 | . . . . . . . . . . . . . . . . . 1 . . . . . . . . . . . . . . . Decomposer 1 | . . . . . . . . . . . . . . . . . . . 1 . . . . . . . . . . . . . Mutant 2 | . . . . . . . . . . . . 1 . . . . . . 1 . . . . . . . . . . . . . Best Kill Streak 9 | . 7 3 6 8 5 1 3 . 3 4 5 2 . 5 1 . 5 4 3 . 9 . 3 4 . 4 4 1 . 5 3 3 Combat Bots Only 9 | . 6 3 3 8 4 1 3 . 3 2 5 2 . 5 1 . 4 4 3 . 9 . 2 4 . 4 4 1 . 5 3 3 Max Kills in Single Turn 4 | . 1 1 2 2 3 1 1 . 2 1 4 1 . 2 1 . 3 2 2 . 2 . 2 2 . 2 2 1 . 2 1 1 Gunslinging 1 | . . . . 1 1 . . . . . . . . . . . . 1 . . . . . . . . . . . . . . Exploded 4 | . . . . . 2 . 1 . 2 1 4 1 . 2 . . 3 . 2 . 2 . 2 2 . . 2 . . . . . Melee . | . . . . . . . . . . . . . . . . . . . . . . . . . . . . . . . . . Uniques/NPCs Destroyed . | . . . . . . . . . . . . . . . . . . . . . . . . . . . . . . . . . Combat | -11 -10 -10 -9 -8 -7 -7 -7 -7 -6 -6 -6 -6 -6 -5 -5 -5 -5 -5 -5 -5 -4 -4 -4 -4 -4 -4 -4 -3 -3 -2 -2 -1 -------- Run | Jun Mat Min Mat Mat Fac Low Low Zio Pro Fac Low Low Dat Pro Fac Was Fac Upp Upp War Pro Fac Ext Cet Arc Hub Gar Res Qua Res Tes Acc Damage Taken 26688 | . 400 264 560 695 2973 207 823 . 431 1485 965 573 . 819 165 . 2582 521 1557 119 968 . 290 163 47 220 868 138 1084 2099 2586 3086 Core 4556 | . 84 26 74 32 231 . 43 . 17 150 102 63 . 138 . . 304 75 405 . 173 . 16 . . 103 80 11 211 365 912 941 Absorbed by Shields 1665 | . . . . . . . . . . . . . . . . . 370 146 . 14 289 . 137 104 . . . . . 364 20 221 Redirected to Shielding 426 | . 5 . . . . . . . . . . . . . . . 164 32 207 18 . . . . . . . . . . . . Ignored by Resistances 1521 | . . . . 68 484 . . . 60 287 121 . . . . . 140 23 19 . 10 . 103 . 9 . 103 31 . 63 . . Regen/Repaired (Parts) 571 | . . . . . . . . 324 . . . . . . . . . . . 142 . . . . . . . . 105 . . . Core Remaining (%) 61 | 100 . 56 81 94 . . . . 58 . . . . 46 . . . . . . 4 . . . . . 82 . 82 . 11 . Volleys Fired 1169 | . 52 13 57 56 147 14 39 . 17 81 29 26 . 28 5 . 101 44 52 21 30 2 27 9 5 26 66 10 6 140 30 36 Largest 2 | . 2 2 2 2 2 2 2 . 2 2 2 2 . 2 2 . 2 2 2 1 1 1 1 1 1 1 1 1 1 2 1 2 Hottest 240 | . 70 70 70 50 50 50 50 . 50 90 90 90 . 65 105 . 150 120 120 225 80 50 45 80 45 45 240 90 90 240 120 195 Shots Fired 1822 | . 102 27 112 111 286 28 75 . 21 156 38 40 . 53 8 . 166 87 96 21 30 2 27 9 5 26 65 10 6 145 30 40 Gun 1162 | . 102 27 112 110 278 28 72 . 8 40 . . . . . . 70 87 83 18 13 1 27 1 5 26 9 . . 21 10 14 Cannon 531 | . . . . . . . . . . 112 20 36 . 49 8 . 68 . 2 1 . 1 . . . . 48 10 6 124 20 26 Launcher 129 | . . . . 1 8 . 3 . 13 4 18 4 . 4 . . 28 . 11 2 17 . . 8 . . 8 . . . . . Special . | . . . . . . . . . . . . . . . . . . . . . . . . . . . . . . . . . Kinetic 706 | . 52 13 105 110 278 28 72 . 8 40 . . . . . . . . . . . . . . . . . . . . . . Thermal 787 | . 50 14 7 . . . . . . 112 20 36 . 49 8 . 108 87 85 18 . . . . . . 10 10 6 121 15 31 Explosive 121 | . . . . 1 8 . 3 . 13 4 18 4 . 4 . . 28 . 6 2 17 . . 8 . . 5 . . . . . Electromagnetic 56 | . . . . . . . . . . . . . . . . . . . 5 . . . . . . . 3 . . 24 15 9 Entropic 122 | . . . . . . . . . . . . . . . . . . . . 1 13 2 27 1 5 26 47 . . . . . Phasic 30 | . . . . . . . . . . . . . . . . . 30 . . . . . . . . . . . . . . . Robot Hit Streak 36 | . 9 5 18 15 23 7 7 . 5 18 13 6 . 11 8 . 19 17 8 . 11 . 9 . 12 6 36 5 . 8 6 13 Robot Miss Streak 9 | . 9 4 2 5 6 2 3 . 2 3 2 5 . 2 . . 3 2 3 . 1 . 3 . 1 2 1 2 . 8 3 3 Penetration Max 3 | . . . . . . . . . . . . . . . . . . . . . 1 . 2 . 1 3 . . . . . . Secondary Targets 12 | . 1 . 1 2 5 . . . . . . . . . . . 2 1 . . . . . . . . . . . . . . Max Gunslinging Chain 1 | . 1 . 1 1 1 . . . . . . . . . . . 1 1 . . . . . . . . . . . . . . Capacitor 280 | . . . . . . . . . . . . . . . . . . . . . . 2 27 1 5 26 45 6 . 139 29 . Shots Hit Robots 1129 | . 56 19 89 74 193 18 49 . 7 112 16 17 . 38 5 . 102 25 66 . 21 . 19 . 4 16 43 5 4 90 18 23 Core Hits 623 | . 26 8 31 31 80 7 25 . 22 45 39 13 . 19 2 . 79 11 28 . 28 . 11 23 2 13 25 3 . 34 8 10 Critical Kills 3 | . . . . . 1 . . . . . . . . 1 . . . . . . . . . . . . . . . . 1 . Critical Parts Destroyed 9 | . . 1 . 1 2 . . . . . . . . . . . . . . . 1 . 3 . . 1 . . . . . . Critical Strikes 29 | . 1 2 1 1 3 . . . . . . . . 1 . . 3 . . . 1 . 3 . . 1 10 . 1 . 1 . Burn 3 | . 1 1 1 . . . . . . . . . . . . . . . . . . . . . . . . . . . . . Meltdown 2 | . . . . . . . . . . . . . . 1 . . . . . . . . . . . . . . . . 1 . Destroy 5 | . . 1 . 1 3 . . . . . . . . . . . . . . . . . . . . . . . . . . . Sever 1 | . . . . . . . . . . . . . . . . . . . . . . . . . . . . . 1 . . . Detonate 5 | . . . . . . . . . . . . . . . . . . . . . 1 . 3 . . 1 . . . . . . Sunder 10 | . . . . . . . . . . . . . . . . . . . . . . . . . . . 10 . . . . . Intensify 3 | . . . . . . . . . . . . . . . . . 3 . . . . . . . . . . . . . . . Melee Attacks 19 | . . . . . 2 . . 1 . . . . . . . . . . . . . . . . . . . . 16 . . . Impact 3 | . . . . . 2 . . 1 . . . . . . . . . . . . . . . . . . . . . . . . Slashing 16 | . . . . . . . . . . . . . . . . . . . . . . . . . . . . . 16 . . . Piercing . | . . . . . . . . . . . . . . . . . . . . . . . . . . . . . . . . . Sneak Attacks . | . . . . . . . . . . . . . . . . . . . . . . . . . . . . . . . . . Combat Hostiles . | . . . . . . . . . . . . . . . . . . . . . . . . . . . . . . . . . Follow-up Attacks . | . . . . . . . . . . . . . . . . . . . . . . . . . . . . . . . . . Damage Inflicted 45554 | . 602 190 1224 1301 4493 298 1161 . 1364 3400 2469 814 . 1556 176 . 5673 706 2431 . 2802 . 1494 1150 248 1156 4163 284 249 4423 779 948 Guns 16732 | . 584 190 1218 1271 3609 298 912 . 130 541 . . . . . . 1610 706 1686 . 473 . 1126 . 248 1026 177 . . 597 10 320 Cannons 13681 | . . . . . . . . . . 2175 465 488 . 1091 176 . 1528 . 34 . . . . . . . 2932 185 . 3368 611 628 Explosions 14699 | . . . . . 854 . 249 . 1234 657 2004 326 . 465 . . 2498 . 680 . 2329 . 354 1150 . 130 1054 99 . 458 158 . Melee 234 | . . . . . . . . . . . . . . . . . . . . . . . . . . . . . 234 . . . Ramming 208 | . 18 . 6 30 30 . . . . 27 . . . . . . 37 . 31 . . . 14 . . . . . 15 . . . Kinetic 8231 | . 210 91 1169 1271 3609 298 912 . 130 541 . . . . . . . . . . . . . . . . . . . . . . Thermal 15678 | . 374 99 49 . . . . . . 2175 465 488 . 1091 176 . 2526 706 1720 . 156 . 279 . . 130 302 284 . 3428 492 738 Explosive 13053 | . . . . . 854 . 249 . 1234 657 2004 326 . 465 . . 2417 . 429 . 2173 . . 1150 . . 690 . . 405 . . Electromagnetic 1652 | . . . . . . . . . . . . . . . . . . . 251 . . . 75 . . . 239 . . 590 287 210 Impact . | . . . . . . . . . . . . . . . . . . . . . . . . . . . . . . . . . Slashing 234 | . . . . . . . . . . . . . . . . . . . . . . . . . . . . . 234 . . . Piercing . | . . . . . . . . . . . . . . . . . . . . . . . . . . . . . . . . . Entropic 5805 | . . . . . . . . . . . . . . . . . . . . . 473 . 1126 . 248 1026 2932 . . . . . Phasic 693 | . . . . . . . . . . . . . . . . . 693 . . . . . . . . . . . . . . . Highest Corruption 21 | . 1 1 . . 3 . . . . 1 3 1 1 1 . 19 18 11 21 21 . . . . . . 2 1 9 11 5 11 Average Corruption 4 | . 1 1 . . 2 . . . . 1 2 1 1 1 . 12 13 2 7 21 . . . . . . 1 1 1 6 5 3 Corruption Purged 39 | . . . . . 4 . . . . . 3 . . . . . 12 10 . . . . . . . . . . . 10 . . Corruption Blocked 3 | . . . . . . . . . . . . . . . . . . . . . . . . . . . . . . . . 3 Effects 263 | . . 8 . . 11 . . . . 7 7 12 2 9 . 6 94 16 41 3 . . . . . . 7 . 1 19 10 10 Message Errors 62 | . . 2 . . 2 . . . . . 1 3 . 3 . . 22 5 11 1 . . . . . . 2 . . 4 2 4 Matter Fused 46 | . . 1 . . 2 . . . . 4 . 1 . 2 . 1 16 2 7 . . . . . . . 2 . . 5 2 1 Heat Flow Errors 28 | . . 1 . . 3 . . . . 2 2 . . 1 . . 10 1 6 . . . . . . . 1 . . 1 . . Energy Discharges 34 | . . 1 . . 3 . . . . . 2 5 . 1 . 1 8 1 6 . . . . . . . 1 . . 3 . 2 Parts Rejected 6 | . . . . . . . . . . . . 1 . . . . 4 . . . . . . . . . . . 1 . . . Parts Fused 2 | . . . . . . . . . . . . . . . . . 1 1 . . . . . . . . . . . . . . Data Loss (minor) 31 | . . 1 . . . . . . . . 2 1 1 1 . 2 10 4 1 2 . . . . . . . . . 2 3 1 Data Loss (major) 16 | . . 1 . . 1 . . . . . . 1 1 . . . 5 1 3 . . . . . . . . . . 1 2 . Misfires 15 | . . 1 . . . . . . . . . . . 1 . . 7 . 3 . . . . . . . . . . 2 . 1 Alerts 10 | . . . . . . . . . . 1 . . . . . . 3 . 4 . . . . . . . . . . . 1 1 Misdirections 4 | . . . . . . . . . . . . . . . . 2 1 . . . . . . . . . . . . 1 . . Weapon Failures 9 | . . . . . . . . . . . . . . . . . 7 1 . . . . . . . . 1 . . . . . Overload Shots 42 | . . . . . . . . . . 1 2 7 . . 1 . . . . 18 . . . . . . 5 . . 8 . . Effects 4 | . . . . . . . . . . . . 2 . . . . . . . 2 . . . . . . . . . . . . Heat Surge 3 | . . . . . . . . . . . . 1 . . . . . . . 2 . . . . . . . . . . . . Short Circuit 1 | . . . . . . . . . . . . 1 . . . . . . . . . . . . . . . . . . . . Overflow Damage 1351 | . . . . . 12 . 2 . 2 121 89 21 . 52 . . 133 . 93 . 49 . 47 3 . . 378 . 13 232 22 82 Projectiles 686 | . . . . . . . . . . 66 15 . . 35 . . 27 . . . . . . . . . 378 . . 112 22 31 Explosions 623 | . . . . . 12 . 2 . 2 55 74 21 . 17 . . 106 . 68 . 49 . 43 3 . . . . . 120 . 51 Melee 42 | . . . . . . . . . . . . . . . . . . . 25 . . . 4 . . . . . 13 . . . Knockbacks 2 | . . . . . 1 . . . . . . . . . . . 1 . . . . . . . . . . . . . . . Impact 2 | . . . . . 1 . . . . . . . . . . . 1 . . . . . . . . . . . . . . . Kinetic . | . . . . . . . . . . . . . . . . . . . . . . . . . . . . . . . . . Secondary . | . . . . . . . . . . . . . . . . . . . . . . . . . . . . . . . . . Self-Inflicted Damage 1333 | . . . . . . . . . 88 194 88 . . 43 . . 319 . 136 . 139 . 71 . . 53 70 11 . . . 121 Shots 34 | . . . . . . . . . 2 3 3 . . 1 . . 11 . 2 . 4 . 1 . . 1 4 1 . . . 1 Rammed 9 | . 1 . 1 2 5 . . . . . . . . . . . . . . . . . . . . . . . . . . . Targets Rammed 21 | . 2 . 1 3 8 . . . . 1 . . . . . . 3 . 1 . . . 1 . . . . . 1 . . . Kicked 8 | . 1 . . . . . . . . 1 . . . . . . 3 . 1 . . . 1 . . . . . 1 . . . Crushed 4 | . . . . 1 3 . . . . . . . . . . . . . . . . . . . . . . . . . . . Highest Temperature 466 | . 170 201 50 435 196 14 156 . 315 97 450 356 . 314 54 . 340 232 351 235 . . . . . 11 330 218 . 466 198 368 Average Temperature 98 | . 61 57 11 174 55 10 36 . 152 39 186 83 . 141 35 . 83 40 105 83 . . . . . 11 91 110 . 133 75 93 Received Heat Transfer 4812 | . 54 . 273 387 633 30 297 . 409 228 174 89 . 165 . . 548 218 507 23 114 . 26 44 9 21 114 42 . 110 270 27 Effects 3 | . . . . 1 . . . . . . . . . . . . . . . . . . . . . . 1 . . 1 . . Shutdowns 2 | . . . . 1 . . . . . . . . . . . . . . . . . . . . . . . . . 1 . . Energy Bleed 1 | . . . . . . . . . . . . . . . . . . . . . . . . . . . 1 . . . . . Siege Activations . | . . . . . . . . . . . . . . . . . . . . . . . . . . . . . . . . . Robots Corrupted 6 | . . . . . . . . . . . . . . . . . . . 1 . . . . . . . . . . 4 1 . Combat Hostiles 6 | . . . . . . . . . . . . . . . . . . . 1 . . . . . . . . . . 4 1 . Parts Fried 14 | . . . . . . . . . . . . . . . . . . . 3 . . . . . . . 1 . . 6 3 1 Impact Corruptions 3 | . . . . . . . . . . . . . . . . . . . 1 . . . 1 . . . . . 1 . . . Robots Melted 6 | . . . . . . . . . . 1 . . . 2 . . 1 . 1 . . . . . . . . . . . 1 . Combat Hostiles 5 | . . . . . . . . . . 1 . . . 2 . . . . 1 . . . . . . . . . . . 1 . Parts Melted 45 | . 3 3 1 . . . . . . 8 1 5 . 5 2 . 8 1 4 . . . . . . . . . . 1 3 . Heat Transferred 17348 | . 1184 370 222 . . . . . . 3003 544 683 . 1629 211 . 3348 925 2220 . 100 . 187 . . 100 174 150 . 1236 396 666 Parts Sabotaged 3 | . . . . . . . . . . . . . . . . . . . . . . . . . . . . . . . 3 . Parts Stolen . | . . . . . . . . . . . . . . . . . . . . . . . . . . . . . . . . . Parts Stripped . | . . . . . . . . . . . . . . . . . . . . . . . . . . . . . . . . . Power Chain Reactions 5 | . . . . . . . . . . . . . . . . . . . . . . . . . . . 1 1 . 1 2 . Missiles Intercepted . | . . . . . . . . . . . . . . . . . . . . . . . . . . . . . . . . . Alert | -11 -10 -10 -9 -8 -7 -7 -7 -7 -6 -6 -6 -6 -6 -5 -5 -5 -5 -5 -5 -5 -4 -4 -4 -4 -4 -4 -4 -3 -3 -2 -2 -1 ------- Run | Jun Mat Min Mat Mat Fac Low Low Zio Pro Fac Low Low Dat Pro Fac Was Fac Upp Upp War Pro Fac Ext Cet Arc Hub Gar Res Qua Res Tes Acc Peak Influence 1648 | . 284 111 232 277 664 . . . . 1018 . . . . 94 41 1466 . . . . 88 621 1085 615 1073 1648 995 886 704 759 838 Initial 927 | . . 1 . 26 32 . . . . 149 . . . . 38 26 28 . . . . 72 42 347 434 214 611 927 559 451 390 396 Average 449 | . 91 18 70 74 295 . . . . 236 . . . . 58 37 793 . . . . 73 272 736 561 591 1246 955 690 566 542 565 Maximum Alert Level 5 | . 1 . 1 1 2 . . . . 3 . . . . . . 4 . . . . . 2 3 2 3 5 3 3 3 3 3 Low Security (%) 43 | . 95 100 93 97 36 . . . . 74 . . . . 100 100 22 . . . . 100 31 . . . . . . . . . Level 1 11 | . 4 . 6 2 33 . . . . 4 . . . . . . 10 . . . . . 46 10 . 24 . . . . 15 11 Level 2 20 | . . . . . 30 . . . . 8 . . . . . . 7 . . . . . 21 34 100 44 2 . 47 97 81 72 Level 3 11 | . . . . . . . . . . 12 . . . . . . 21 . . . . . . 54 . 30 19 100 52 2 2 15 Level 4 10 | . . . . . . . . . . . . . . . . . 38 . . . . . . . . . 58 . . . . . Level 5 1 | . . . . . . . . . . . . . . . . . . . . . . . . . . . 19 . . . . . High Security . | . . . . . . . . . . . . . . . . . . . . . . . . . . . . . . . . . Max Security . | . . . . . . . . . . . . . . . . . . . . . . . . . . . . . . . . . Squads Dispatched 55 | . 1 . 3 2 12 . . . . 7 . . . . . . 9 . . . . . 1 . . 1 . 4 4 5 5 1 Investigation 1 | . 1 . . . . . . . . . . . . . . . . . . . . . . . . . . . . . . . Extermination 12 | . . . . . 3 . . . . 2 . . . . . . 2 . . . . . . . . . . 1 1 2 . 1 Reinforcement 28 | . . . 3 2 4 . . . . 1 . . . . . . 5 . . . . . 1 . . 1 . 3 2 3 3 . Assault 7 | . . . . . . . . . . 2 . . . . . . 2 . . . . . . . . . . . 1 . 2 . Garrison 7 | . . . . . 5 . . . . 2 . . . . . . . . . . . . . . . . . . . . . . Intercept . | . . . . . . . . . . . . . . . . . . . . . . . . . . . . . . . . . Searches Triggered . | . . . . . . . . . . . . . . . . . . . . . . . . . . . . . . . . . Data Miner Redirects 3 | . . . . . . . . . . . . . . . . . 1 . . . . . . . . . . . . . 2 . Construction Impeded 4 | . . . . . 1 . . . . 1 . . . . . . . . . . . . . . . . . 1 . 1 . . Haulers Reinforced 2 | . . . . . . . . . . . . . . . . . 1 . . . . . . . . . . 1 . . . . Active Scanning Responses . | . . . . . . . . . . . . . . . . . . . . . . . . . . . . . . . . . Cargo Convoy Interrupts 1 | . . . . . 1 . . . . . . . . . . . . . . . . . . . . . . . . . . . Stealth | -11 -10 -10 -9 -8 -7 -7 -7 -7 -6 -6 -6 -6 -6 -5 -5 -5 -5 -5 -5 -5 -4 -4 -4 -4 -4 -4 -4 -3 -3 -2 -2 -1 --------- Run | Jun Mat Min Mat Mat Fac Low Low Zio Pro Fac Low Low Dat Pro Fac Was Fac Upp Upp War Pro Fac Ext Cet Arc Hub Gar Res Qua Res Tes Acc Distress Signals 25 | . 1 . 1 3 2 . . . . . . . . . . . 3 . . . . . 3 2 . 3 . . 2 3 . 2 Communications Jammed 6 | . . . . . . . . . . . . . . . . . . . . . . . . . . 1 . . . . 5 . Distress Signals 6 | . . . . . . . . . . . . . . . . . . . . . . . . . . 1 . . . . 5 . Times Spotted 561 | . 18 6 16 26 52 3 8 . 13 33 19 6 . 14 2 3 71 7 15 28 14 . 19 17 3 17 22 3 30 32 27 37 Peak Tracking Total 12 | . 4 3 3 7 5 1 3 . 4 5 5 2 . 4 2 3 6 4 5 10 8 . 4 5 2 3 3 2 12 4 12 9 Tactical Retreats 32 | . 1 . . 1 5 . . . 1 1 . . . . . 1 3 . 2 1 1 . 1 . . . 2 . 1 2 3 6 Traps | -11 -10 -10 -9 -8 -7 -7 -7 -7 -6 -6 -6 -6 -6 -5 -5 -5 -5 -5 -5 -5 -4 -4 -4 -4 -4 -4 -4 -3 -3 -2 -2 -1 ------- Run | Jun Mat Min Mat Mat Fac Low Low Zio Pro Fac Low Low Dat Pro Fac Was Fac Upp Upp War Pro Fac Ext Cet Arc Hub Gar Res Qua Res Tes Acc Traps Triggered 19 | . 2 . 4 1 1 . . . . 1 . . . . 1 . . . . 1 . . . . . 4 2 2 . . . . Indirectly . | . . . . . . . . . . . . . . . . . . . . . . . . . . . . . . . . . Trap Hack Attempts . | . . . . . . . . . . . . . . . . . . . . . . . . . . . . . . . . . Triggered . | . . . . . . . . . . . . . . . . . . . . . . . . . . . . . . . . . Disarmed . | . . . . . . . . . . . . . . . . . . . . . . . . . . . . . . . . . Reprogrammed . | . . . . . . . . . . . . . . . . . . . . . . . . . . . . . . . . . Reused . | . . . . . . . . . . . . . . . . . . . . . . . . . . . . . . . . . Traps Extracted . | . . . . . . . . . . . . . . . . . . . . . . . . . . . . . . . . . Installed . | . . . . . . . . . . . . . . . . . . . . . . . . . . . . . . . . . Triggered 11 | . . . . . 2 . . . 2 . . 1 . . . . . . . 6 . . . . . . . . . . . . Machines | -11 -10 -10 -9 -8 -7 -7 -7 -7 -6 -6 -6 -6 -6 -5 -5 -5 -5 -5 -5 -5 -4 -4 -4 -4 -4 -4 -4 -3 -3 -2 -2 -1 ---------- Run | Jun Mat Min Mat Mat Fac Low Low Zio Pro Fac Low Low Dat Pro Fac Was Fac Upp Upp War Pro Fac Ext Cet Arc Hub Gar Res Qua Res Tes Acc Machines Disabled 60 | . . . . . . . . . . 16 . 2 . . . . 9 1 1 1 . . 2 3 3 4 6 . 5 2 3 2 Max in Single Turn 2 | . . . . . . . . . . 2 . 1 . . . . 2 1 1 1 . . 1 2 1 1 2 . 1 1 2 1 Garrison Access 2 | . . . . . . . . . . 1 . . . . . . 1 . . . . . . . . . . . . . . . Garrison Relay 2 | . . . . . . . . . . . . . . . . . . . . . . . . . . . 2 . . . . . Phase Generator 1 | . . . . . . . . . . . . . . . . . . . . . . . . . . . 1 . . . . . Energy Cycler 1 | . . . . . . . . . . . . . . . . . . . . . . . . . . . . . . . . 1 Machines Repaired . | . . . . . . . . . . . . . . . . . . . . . . . . . . . . . . . . . Machines Sabotaged . | . . . . . . . . . . . . . . . . . . . . . . . . . . . . . . . . . Overloaded Fab Kills . | . . . . . . . . . . . . . . . . . . . . . . . . . . . . . . . . . Hacking | -11 -10 -10 -9 -8 -7 -7 -7 -7 -6 -6 -6 -6 -6 -5 -5 -5 -5 -5 -5 -5 -4 -4 -4 -4 -4 -4 -4 -3 -3 -2 -2 -1 --------- Run | Jun Mat Min Mat Mat Fac Low Low Zio Pro Fac Low Low Dat Pro Fac Was Fac Upp Upp War Pro Fac Ext Cet Arc Hub Gar Res Qua Res Tes Acc Machines Accessed 33 | . . . . 2 2 2 . 1 . 1 1 1 4 . 2 . 3 4 1 7 . . . . . 1 . . 1 . . . Terminals 8 | . . . . 2 2 1 . . . . . . . . . . . 1 1 . . . . . . . . . 1 . . . Fabricators 4 | . . . . . . . . . . . . . . . 2 . 2 . . . . . . . . . . . . . . . Repair Stations 1 | . . . . . . . . . . . . . . . . . 1 . . . . . . . . . . . . . . . Recycling Units . | . . . . . . . . . . . . . . . . . . . . . . . . . . . . . . . . . Scanalyzers . | . . . . . . . . . . . . . . . . . . . . . . . . . . . . . . . . . Garrison Access 2 | . . . . . . . . . . 1 . . . . . . . . . . . . . . . 1 . . . . . . Total Hacks 97 | . . . . 5 3 2 . 3 . 1 1 1 31 . 3 . 10 11 1 23 . . . . . 1 . . 1 . . . Successful 80 | . . . . 1 1 2 . 3 . . 1 1 31 . 1 . 2 11 1 23 . . . . . 1 . . 1 . . . Failed 17 | . . . . 4 2 . . . . 1 . . . . 2 . 8 . . . . . . . . . . . . . . . Catastrophic 3 | . . . . . . . . . . 1 . . . . . . 2 . . . . . . . . . . . . . . . Database Lockouts . | . . . . . . . . . . . . . . . . . . . . . . . . . . . . . . . . . Manual 119 | . . . . 5 2 . . . . 14 . . . . 3 . 18 . . . . . 20 1 . 6 4 . 16 13 12 5 Terminals 15 | . . . . 5 3 1 . . . . . . . . . . . 4 1 . . . . . . . . . 1 . . . Fabricators 11 | . . . . . . . . . . . . . . . 3 . 8 . . . . . . . . . . . . . . . Repair Stations 2 | . . . . . . . . . . . . . . . . . 2 . . . . . . . . . . . . . . . Recycling Units . | . . . . . . . . . . . . . . . . . . . . . . . . . . . . . . . . . Scanalyzers . | . . . . . . . . . . . . . . . . . . . . . . . . . . . . . . . . . Garrison Access 2 | . . . . . . . . . . 1 . . . . . . . . . . . . . . . 1 . . . . . . Terminal Hacks 76 | . . . . 1 1 2 . 3 . . 1 1 31 . . . . 11 1 23 . . . . . . . . 1 . . . Record 45 | . . . . . . 1 . . . . . . 11 . . . . 9 1 23 . . . . . . . . . . . . Part Schematic 13 | . . . . . . . . 3 . . . . 10 . . . . . . . . . . . . . . . . . . . Robot Schematic 7 | . . . . . . . . . . . . . 7 . . . . . . . . . . . . . . . . . . . Prototype ID Bank 3 | . . . . . . . . . . . . . 3 . . . . . . . . . . . . . . . . . . . Open Door 6 | . . . . . . 1 . . . . 1 1 . . . . . 2 . . . . . . . . . . 1 . . . Branch Access Points 1 | . . . . . 1 . . . . . . . . . . . . . . . . . . . . . . . . . . . Unreport Threat 1 | . . . . 1 . . . . . . . . . . . . . . . . . . . . . . . . . . . . Fabricator Hacks 3 | . . . . . . . . . . . . . . . 1 . 2 . . . . . . . . . . . . . . . Network Status 1 | . . . . . . . . . . . . . . . 1 . . . . . . . . . . . . . . . . . Load Schematic 2 | . . . . . . . . . . . . . . . . . 2 . . . . . . . . . . . . . . . Repair Station Hacks . | . . . . . . . . . . . . . . . . . . . . . . . . . . . . . . . . . Recycling Unit Hacks . | . . . . . . . . . . . . . . . . . . . . . . . . . . . . . . . . . Scanalyzer . | . . . . . . . . . . . . . . . . . . . . . . . . . . . . . . . . . Garrison Access Hacks 1 | . . . . . . . . . . . . . . . . . . . . . . . . . . 1 . . . . . . Unlock Access 1 | . . . . . . . . . . . . . . . . . . . . . . . . . . 1 . . . . . . Unauthorized Hacks . | . . . . . . . . . . . . . . . . . . . . . . . . . . . . . . . . . Terminals . | . . . . . . . . . . . . . . . . . . . . . . . . . . . . . . . . . Fabricators . | . . . . . . . . . . . . . . . . . . . . . . . . . . . . . . . . . Repair Stations . | . . . . . . . . . . . . . . . . . . . . . . . . . . . . . . . . . Recycling Units . | . . . . . . . . . . . . . . . . . . . . . . . . . . . . . . . . . Scanalyzers . | . . . . . . . . . . . . . . . . . . . . . . . . . . . . . . . . . Garrison Access . | . . . . . . . . . . . . . . . . . . . . . . . . . . . . . . . . . Data Cores Recovered 2 | . . . . . . . . . . . . . . . . . . . . . . . 2 . . . . . . . . . Used . | . . . . . . . . . . . . . . . . . . . . . . . . . . . . . . . . . Hacking Detections 12 | . . . . 2 2 . . . . 1 . . . . 2 . 3 1 . . . . . . . 1 . . . . . . Full Trace Events 1 | . . . . . . . . . . . . . . . . . . 1 . . . . . . . . . . . . . . Feedback Events . | . . . . . . . . . . . . . . . . . . . . . . . . . . . . . . . . . Feedback Blocked . | . . . . . . . . . . . . . . . . . . . . . . . . . . . . . . . . . Robot Schematics Acquired 13 | . . . . . . . . 2 . . . . 7 . . . . . . . . . . . . . . . 1 . 3 . Robots Built . | . . . . . . . . . . . . . . . . . . . . . . . . . . . . . . . . . Authchips . | . . . . . . . . . . . . . . . . . . . . . . . . . . . . . . . . . Time . | . . . . . . . . . . . . . . . . . . . . . . . . . . . . . . . . . Total Robot Build Rating . | . . . . . . . . . . . . . . . . . . . . . . . . . . . . . . . . . Part Schematics Acquired 38 | . . . . . . . . 19 . . . . 10 . . . . . . . . . . . . . . . 3 . 6 . Parts Built . | . . . . . . . . . . . . . . . . . . . . . . . . . . . . . . . . . Authchips . | . . . . . . . . . . . . . . . . . . . . . . . . . . . . . . . . . Time . | . . . . . . . . . . . . . . . . . . . . . . . . . . . . . . . . . Total Part Build Rating . | . . . . . . . . . . . . . . . . . . . . . . . . . . . . . . . . . Parts Repaired . | . . . . . . . . . . . . . . . . . . . . . . . . . . . . . . . . . Time . | . . . . . . . . . . . . . . . . . . . . . . . . . . . . . . . . . Parts Recycled . | . . . . . . . . . . . . . . . . . . . . . . . . . . . . . . . . . Recycled Matter . | . . . . . . . . . . . . . . . . . . . . . . . . . . . . . . . . . Retrieved Matter . | . . . . . . . . . . . . . . . . . . . . . . . . . . . . . . . . . Retrieved Components . | . . . . . . . . . . . . . . . . . . . . . . . . . . . . . . . . . Parts Scanalyzed . | . . . . . . . . . . . . . . . . . . . . . . . . . . . . . . . . . Part Schematics Acquired . | . . . . . . . . . . . . . . . . . . . . . . . . . . . . . . . . . Parts Damaged . | . . . . . . . . . . . . . . . . . . . . . . . . . . . . . . . . . Bothacking | -11 -10 -10 -9 -8 -7 -7 -7 -7 -6 -6 -6 -6 -6 -5 -5 -5 -5 -5 -5 -5 -4 -4 -4 -4 -4 -4 -4 -3 -3 -2 -2 -1 ------------ Run | Jun Mat Min Mat Mat Fac Low Low Zio Pro Fac Low Low Dat Pro Fac Was Fac Upp Upp War Pro Fac Ext Cet Arc Hub Gar Res Qua Res Tes Acc Used RIF Installer . | . . . . . . . . . . . . . . . . . . . . . . . . . . . . . . . . . Robots Hacked . | . . . . . . . . . . . . . . . . . . . . . . . . . . . . . . . . . Non-combat . | . . . . . . . . . . . . . . . . . . . . . . . . . . . . . . . . . Combat . | . . . . . . . . . . . . . . . . . . . . . . . . . . . . . . . . . Robot Hacks Applied . | . . . . . . . . . . . . . . . . . . . . . . . . . . . . . . . . . Relay Couplers Released 13 | . . . . . . . . . . 2 . . . . . . 2 . . . . . . . . . 9 . . . . . Machine Destruction 13 | . . . . . . . . . . 2 . . . . . . 2 . . . . . . . . . 9 . . . . . Fabnet Peak Effective % . | . . . . . . . . . . . . . . . . . . . . . . . . . . . . . . . . . Robots Rewired 13 | . . . . . . . . . . . . . . . . . . . . . . . 11 . . . . . . 1 1 . Allies Hacked 2 | . . . . . . . . . . 2 . . . . . . . . . . . . . . . . . . . . . . Hacks Repelled . | . . . . . . . . . . . . . . . . . . . . . . . . . . . . . . . . . Allies | -11 -10 -10 -9 -8 -7 -7 -7 -7 -6 -6 -6 -6 -6 -5 -5 -5 -5 -5 -5 -5 -4 -4 -4 -4 -4 -4 -4 -3 -3 -2 -2 -1 -------- Run | Jun Mat Min Mat Mat Fac Low Low Zio Pro Fac Low Low Dat Pro Fac Was Fac Upp Upp War Pro Fac Ext Cet Arc Hub Gar Res Qua Res Tes Acc Total Allies 59 | . . . . . . . . 6 . 2 . . . 1 . . 10 . . . . . 25 4 . 3 . . . 2 1 5 Largest Group 23 | . . . . . . . . 6 6 5 . . . 1 1 . 6 . . . . . 22 23 10 7 6 . . 1 1 3 Highest-Rated Group 1392 | . . . . . . . . 217 217 180 . . . 96 96 . 420 . . . . . 1114 1392 802 580 484 . . 32 155 244 Highest-Rated Ally 159 | . . . . . . . . 40 40 85 . . . 96 96 . 85 . . . . . 159 159 159 96 96 . . 32 155 122 Zionite Dispatches 13 | . . . . . . . . . . 1 . . . . . . 4 . . . . . 4 . . 1 . . . 1 . 2 Heavy 4 | . . . . . . . . . . 1 . . . . . . 2 . . . . . . . . . . . . . . 1 Light 4 | . . . . . . . . . . . . . . . . . 2 . . . . . 1 . . 1 . . . . . . Hacker 1 | . . . . . . . . . . . . . . . . . . . . . . . . . . . . . . . . 1 Thermal Resupply 1 | . . . . . . . . . . . . . . . . . . . . . . . . . . . . . . 1 . . Kinetic Resupply 1 | . . . . . . . . . . . . . . . . . . . . . . . 1 . . . . . . . . . Melee Resupply 1 | . . . . . . . . . . . . . . . . . . . . . . . 1 . . . . . . . . . Infowar Resupply 1 | . . . . . . . . . . . . . . . . . . . . . . . 1 . . . . . . . . . Total Orders 18 | . . . . . . . . . . . . . . . . . 5 . . . . . 1 2 . . 2 . 2 3 . 3 STAY 3 | . . . . . . . . . . . . . . . . . . . . . . . 1 1 . . 1 . . . . . ROAM 1 | . . . . . . . . . . . . . . . . . 1 . . . . . . . . . . . . . . . FOLLOW 1 | . . . . . . . . . . . . . . . . . . . . . . . . . . . 1 . . . . . DROP 4 | . . . . . . . . . . . . . . . . . . . . . . . . 1 . . . . . 3 . . EXPLORE 7 | . . . . . . . . . . . . . . . . . 4 . . . . . . . . . . . . . . 3 RETURN 2 | . . . . . . . . . . . . . . . . . . . . . . . . . . . . . 2 . . . Ally Attacks 653 | . . . . . . . . . 71 37 . . . 29 5 . 137 . . . . . 104 83 26 64 29 . 26 . 12 30 Total Damage 24720 | . . . . . . . . . 1141 1567 . . . 922 206 . 4630 . . . . . 3175 3169 993 2165 1449 . 2671 . 917 1715 Kills 138 | . . . . . . . . . 8 14 . . . 4 1 . 28 . . . . . 20 13 5 11 6 . 16 . 3 9 Allies Corrupted 3 | . . . . . . . . . . 2 . . . . . . . . . . . . . . . . . . 1 . . . Allies Melted 1 | . . . . . . . . . . . . . . . . . . . . . . . 1 . . . . . . . . . Intel | -11 -10 -10 -9 -8 -7 -7 -7 -7 -6 -6 -6 -6 -6 -5 -5 -5 -5 -5 -5 -5 -4 -4 -4 -4 -4 -4 -4 -3 -3 -2 -2 -1 ------- Run | Jun Mat Min Mat Mat Fac Low Low Zio Pro Fac Low Low Dat Pro Fac Was Fac Upp Upp War Pro Fac Ext Cet Arc Hub Gar Res Qua Res Tes Acc Robot Analysis Total . | . . . . . . . . . . . . . . . . . . . . . . . . . . . . . . . . . Derelict Logs Recovered 16 | . . 1 . . . 2 1 1 2 . 3 . . 2 . . . 3 1 . . . . . . . . . . . . . Drone Launches 10 | . . . . . . . . . . . . . . . . . 4 . . . . . . . . . . . 3 . . 3 Drone Recoveries 9 | . . . . . . . . . . . . . . . . . 4 . . . . . . . . . . . 2 . . 3 Zionite Intel Received 17 | . . . . . . . . . . 3 . . . . . . 2 . . . . . 2 . . 1 . . 4 2 3 . Main Access 1 | . . . . . . . . . . . . . . . . . . . . . . . . . . . . . . . 1 . Emergency Access 1 | . . . . . . . . . . . . . . . . . . . . . . . . . . . . . 1 . . . Guard Positions 4 | . . . . . . . . . . 1 . . . . . . . . . . . . . . . . . . 1 1 1 . Trap Installations 6 | . . . . . . . . . . 1 . . . . . . 1 . . . . . 1 . . . . . 1 1 1 . Active Garrisons 4 | . . . . . . . . . . 1 . . . . . . 1 . . . . . . . . 1 . . 1 . . . Depthwide Sectors/-1 1 | . . . . . . . . . . . . . . . . . . . . . . . 1 . . . . . . . . . Exploration | -11 -10 -10 -9 -8 -7 -7 -7 -7 -6 -6 -6 -6 -6 -5 -5 -5 -5 -5 -5 -5 -4 -4 -4 -4 -4 -4 -4 -3 -3 -2 -2 -1 ------------- Run | Jun Mat Min Mat Mat Fac Low Low Zio Pro Fac Low Low Dat Pro Fac Was Fac Upp Upp War Pro Fac Ext Cet Arc Hub Gar Res Qua Res Tes Acc Turns Passed 36548 | . 811 1318 1092 1030 2245 1571 2286 2097 1928 1946 1748 1593 163 1363 246 151 2150 1570 2249 1796 678 56 1070 283 68 402 1754 263 661 977 419 564 Spaces Moved 20304 | 1 362 532 498 489 1057 924 1248 1241 1126 871 898 918 100 798 181 123 1363 749 1019 713 330 48 721 217 43 307 1346 205 460 550 387 479 Core 276 | . . . . . . . . . . . . . . . . . . . 51 . . . . . . . . . . . 131 94 Treads 7539 | . 243 532 498 489 1057 924 1248 1241 1126 171 . . . . . . . . . . . . . . . . . . . . . 10 Legs 10715 | 1 119 . . . . . . . . 668 . 366 100 798 181 123 1363 749 968 713 330 48 721 217 43 307 1346 205 460 550 201 138 Wheels 1482 | . . . . . . . . . . 32 898 552 . . . . . . . . . . . . . . . . . . . . Hover 186 | . . . . . . . . . . . . . . . . . . . . . . . . . . . . . . . . 186 Flight 106 | . . . . . . . . . . . . . . . . . . . . . . . . . . . . . . . 55 51 Fastest Speed 40 | 120 120 240 160 160 160 164 164 166 166 135 135 120 123 123 123 123 118 118 116 106 106 106 106 106 106 108 110 115 114 112 40 40 Average Speed 147 | 120 173 240 166 163 162 164 168 166 166 183 160 129 123 123 123 123 124 118 185 209 106 106 106 106 108 109 113 115 115 117 83 83 Slowest Speed 900 | 120 240 240 240 240 240 164 250 166 166 215 175 175 123 124 123 123 195 118 900 260 106 106 106 106 110 110 116 116 116 190 250 240 Overloaded Moves . | . . . . . . . . . . . . . . . . . . . . . . . . . . . . . . . . . Propulsion Burnouts . | . . . . . . . . . . . . . . . . . . . . . . . . . . . . . . . . . Robots Hopped 1 | . . . . . . . . . . . . . . . . . . . . . . . . . . . . . . . 1 . Cave-ins Triggered . | . . . . . . . . . . . . . . . . . . . . . . . . . . . . . . . . . Exploration Rate (%) 60 | 2 71 95 56 54 28 96 91 89 96 31 95 88 69 88 7 84 51 92 92 87 58 2 87 73 61 37 84 8 41 15 53 18 Regions Visited 32 Branch Regions 19 Pre-discovered Areas 8 | . . . . . . 1 . . 2 . 1 . 1 . . . . . . . . . 3 . . . . . . . . . Known Exits Taken 8 | . . . . . 1 . . . 1 1 . . . . . . . . . . 1 1 . . . 1 . 1 . . 1 . Unknown Exits Taken 21 | 1 1 1 1 1 . 1 1 1 . . 1 1 1 1 . . 1 1 1 1 . . 1 1 1 . . . 1 1 . . Scrap Searched 25 | . . 3 . . . 2 3 3 2 . 4 2 . 2 . . . 2 2 . . . . . . . . . . . . . Spaces Dug 110 | . . . . . 20 . . . 14 1 10 3 . 4 2 . 3 8 . 4 . 4 . . . 13 5 1 6 5 2 5 Terrain Destroyed 1343 | . . . . 12 54 . 16 . 101 63 99 32 . 39 3 . 205 35 93 21 153 4 41 68 7 69 104 10 7 46 25 36 Melee 6 | . . . . . 2 . . . . . . . . . . . . . . . . . . . . . . . 4 . . . Projectile 289 | . . . . . . . . . . 7 2 16 . 4 3 . 31 35 18 7 18 4 30 . 7 45 6 4 3 33 4 12 AOE 1047 | . . . . 12 52 . 16 . 101 56 97 16 . 35 . . 174 . 75 14 135 . 11 68 . 24 98 6 . 13 20 24 Terrain Rammed . | . . . . . . . . . . . . . . . . . . . . . . . . . . . . . . . . . Walls Destroyed . | . . . . . . . . . . . . . . . . . . . . . . . . . . . . . . . . . Machines Disabled . | . . . . . . . . . . . . . . . . . . . . . . . . . . . . . . . . . Actions | -11 -10 -10 -9 -8 -7 -7 -7 -7 -6 -6 -6 -6 -6 -5 -5 -5 -5 -5 -5 -5 -4 -4 -4 -4 -4 -4 -4 -3 -3 -2 -2 -1 --------- Run | Jun Mat Min Mat Mat Fac Low Low Zio Pro Fac Low Low Dat Pro Fac Was Fac Upp Upp War Pro Fac Ext Cet Arc Hub Gar Res Qua Res Tes Acc Total 25599 | . 455 551 651 659 1398 963 1386 1277 1162 1084 1171 1283 140 1139 198 122 1662 1348 1304 1004 623 52 1027 259 64 369 1539 225 555 854 481 594 Wait 2965 | . 24 . 23 37 103 11 76 22 14 48 205 313 37 299 5 . 67 538 216 204 258 1 81 32 15 26 97 8 23 104 17 61 Move 20270 | . 361 531 497 488 1056 923 1247 1240 1125 870 897 917 99 797 181 122 1362 748 1018 712 329 47 720 216 42 307 1343 204 459 549 384 479 Hop 1 | . . . . . . . . . . . . . . . . . . . . . . . . . . . . . . . 1 . Pick Up 200 | . 5 4 27 19 22 6 7 5 1 23 10 3 . 1 1 . 22 2 . 7 1 . 2 1 . 2 6 1 11 7 4 . Fast Attach 189 | . 1 . 18 9 6 . 2 . . 10 5 8 2 2 1 . 29 5 4 15 . 1 . . 1 5 5 2 10 23 9 16 Attach 121 | . 3 1 7 7 14 2 6 . . 10 5 . . 1 3 . 15 2 4 6 1 . 1 1 . 1 8 . 7 7 7 2 Detach 31 | . . . . 1 1 . . . . . . . . . . . 6 . 1 7 . . . . . 1 1 . 1 3 9 . Swap 160 | . 2 1 1 7 26 3 6 4 5 12 7 11 . 9 1 . 28 4 8 6 3 1 3 . . 1 6 . 1 1 3 . Drop 245 | . 5 1 20 32 13 4 3 5 . 29 13 5 2 2 1 . 29 5 . 26 1 . 3 . 1 . 6 . 20 12 7 . Fire 1169 | . 52 13 57 56 147 14 39 . 17 81 29 26 . 28 5 . 101 44 52 21 30 2 27 9 5 26 66 10 6 140 30 36 Melee 19 | . . . . . 2 . . 1 . . . . . . . . . . . . . . . . . . . . 16 . . . Ram . | . . . . . . . . . . . . . . . . . . . . . . . . . . . . . . . . . Kick 8 | . 1 . . . . . . . . 1 . . . . . . 3 . 1 . . . 1 . . . . . 1 . . . Crush 13 | . 1 . 1 3 8 . . . . . . . . . . . . . . . . . . . . . . . . . . . Escape Stasis 1 | . . . . . . . . . . . . . . . . . . . . . . . . . . . 1 . . . . . Rewire 207 | . . . . . . . . . . . . . . . . . . . . . . . 189 . . . . . . 8 10 . Trap . | . . . . . . . . . . . . . . . . . . . . . . . . . . . . . . . . . Miscellaneous . | . . . . . . . . . . . . . . . . . . . . . . . . . . . . . . . . . Route ------- -11/Junkyard -10/Materials (discovered 4 exits: [*Mat x2] / [*Min x2]) -10/Mines (discovered 3 exits: [*Mat x2] / Sub) -9/Materials (discovered 2 exits: *Mat x2) -8/Materials -7/Factory (discovered 4 exits: *Fac / Sto / *Low x2) -7/Lower Caves -7/Lower Caves (discovered 2 exits: *Fac / *Zio) -7/Zion -6/Proximity Caves -6/Factory -6/Lower Caves -6/Lower Caves (discovered 2 exits: *Fac / *Dat) -6/Data Miner -5/Proximity Caves -5/Factory -5/Waste -5/Factory (discovered 4 exits: *Fac x3 / *Upp) -5/Upper Caves -5/Upper Caves (discovered 2 exits: *Fac / *War) -5/Warlord -4/Proximity Caves -4/Factory (discovered 4 exits: Res x2 / *Ext x2) -4/Extension (discovered 2 exits: *Res / *Cet) -4/Cetus (discovered 2 exits: *Res / [*Arc]) -4/Archives -4/Hub_04(d) (discovered 2 exits: *Res / Gar) -4/Garrison (discovered 3 exits: *Res x3) -3/Research -3/Quarantine -2/Research -2/Testing -1/Access History --------- Turn | Location | Event 1 | -11/Junkyard | Discovered new exit (range 0) 1 | -11/Junkyard | Entered Materials 254 | -10/Materials | Discovered new exit (range 8) 300 | -10/Materials | Discovered new exit (range 14) 310 | -10/Materials | Build established: Mutant 676 | -10/Materials | Discovered new exit (range 15) 758 | -10/Materials | Discovered new exit (range 12) 812 | -10/Materials | Entered Mines 832 | -10/Mines | Discovered new exit (range 8) 1049 | -10/Mines | Discovered new exit (range 10) 1273 | -10/Mines | Received a Rocket Launcher from a helpful Derelict 1418 | -10/Mines | Identified exit to Subcaves 2130 | -10/Mines | Entered Materials 2130 | -9/Materials | Evolved 2 slots: Propulsion x1, Utility x1 2521 | -9/Materials | Discovered new exit (range 16) 2972 | -9/Materials | Discovered new exit (range 13) 3222 | -9/Materials | Entered another Materials area 3222 | -8/Materials | Evolved 2 slots: Propulsion x1, Utility x1 4033 | -8/Materials | Destroyed 8 combat bots 4080 | -8/Materials | Build established: Scavenger-Mutant 4228 | -8/Materials | Discovered new exit (range 15) 4252 | -8/Materials | Entered Factory 4252 | -7/Factory | Evolved 2 slots: Propulsion x1, Utility x1 4441 | -7/Factory | Discovered new exit (range 6) 4635 | -7/Factory | Identified exit to Factory 4703 | -7/Factory | Identified exit to Storage 4703 | -7/Factory | Identified exit to Lower Caves 4712 | -7/Factory | Garrison activated, responded to threat 4757 | -7/Factory | Lost 3 parts (1p2n) 5163 | -7/Factory | Cargo convoy interrupted 5547 | -7/Factory | Garrison activated, responded to threat 5785 | -7/Factory | Lost 3 parts (2n1u) 6433 | -7/Factory | Garrison activated, responded to threat 6497 | -7/Factory | Entered Lower Caves 6842 | -7/Lower Caves | Attracted the attention of an 0b10 checkpoint 6938 | -7/Lower Caves | Learned location of 1 exit from Proximity Caves 7068 | -7/Lower Caves | Encountered a Warlord checkpoint 7185 | -7/Lower Caves | Discovered new exit (range 11) 8068 | -7/Lower Caves | Entered another Lower Caves area 8398 | -7/Lower Caves | Discovered exit to Factory (range 8) 9423 | -7/Lower Caves | Lost 4 parts (2n2u) 9740 | -7/Lower Caves | Discovered new exit (range 5) 9758 | -7/Lower Caves | Learned Factory emergency access door positions 10030 | -7/Lower Caves | Spotted B-75 Beast 10354 | -7/Lower Caves | Entered Zion 10501 | -7/Zion | Discovered new exit (range 9) 10592 | -7/Zion | Gained Derelict followers 10767 | -7/Zion | Learned 4 Factory zone layouts 11085 | -7/Zion | Found Relay Coupler [Programmer] 11088 | -7/Zion | Found Relay Coupler [Programmer] 11090 | -7/Zion | Found Relay Coupler [Programmer] 11775 | -7/Zion | Imprinted 11777 | -7/Zion | Declared Zion's savior 12162 | -7/Zion | Found GAL Module 12209 | -7/Zion | Found Prototype Device 12210 | -7/Zion | Identified Mobile Refinery Mk. CCLXVII 12451 | -7/Zion | Entered Proximity Caves 12451 | -6/Proximity Caves | Accompanied by 6 allies 13231 | -6/Proximity Caves | Spotted B-75 Beast 13248 | -6/Proximity Caves | Allies destroyed B-75 Beast 14379 | -6/Proximity Caves | Entered Factory 14379 | -6/Factory | Accompanied by 5 allies 14379 | -6/Factory | Evolved 2 slots: Power x1, Propulsion x1 14957 | -6/Factory | Build established: Mutant 15058 | -6/Factory | Retrieved Zion intel report: Trap Installations 15102 | -6/Factory | Retrieved Zion intel report: Guard Positions 15604 | -6/Factory | Discovered new exit (range 15) 15652 | -6/Factory | Retrieved Zion intel report: Active Garrisons 15653 | -6/Factory | Zion Heavy squad teleported in 15703 | -6/Factory | Terminal network hard line cut 15809 | -6/Factory | Garrison activated, responded to threat 16085 | -6/Factory | Garrison activated, responded to threat 16129 | -6/Factory | First assault squad dispatched 16318 | -6/Factory | Identified exit to Lower Caves 16325 | -6/Factory | Entered Lower Caves 16549 | -6/Lower Caves | Ambushed by research squad 16584 | -6/Lower Caves | Learned Factory emergency access door positions 17468 | -6/Lower Caves | Found Imp. Powered Armor 17745 | -6/Lower Caves | Discovered new exit (range 12) 17778 | -6/Lower Caves | Encountered a Warlord checkpoint 18073 | -6/Lower Caves | Entered another Lower Caves area 18132 | -6/Lower Caves | Acquired the password to a Derelict Tinkerer's latest research 18170 | -6/Lower Caves | Discovered new exit (range 10) 18886 | -6/Lower Caves | Build established: Scavenger-Mutant 18903 | -6/Lower Caves | Caught by Unaware searching for contraband prototypes 19088 | -6/Lower Caves | Discovered new exit (range 19) 19293 | -6/Lower Caves | Spotted B-75 Beast 19458 | -6/Lower Caves | Attacked by a delusional Derelict stockpiling parts 19666 | -6/Lower Caves | Entered Data Miner 19667 | -6/Data Miner | Discovered new exit (range 6) 19691 | -6/Data Miner | Met Data Miner 19714 | -6/Data Miner | Learned location of Section 7 (-3) 19714 | -6/Data Miner | Acquired the access code to Warlord's prototype stash 19776 | -6/Data Miner | Received God Mode back door access code from Data Miner 19829 | -6/Data Miner | Entered Proximity Caves 19926 | -5/Proximity Caves | Spotted B-75 Beast 19942 | -5/Proximity Caves | Escorted by Enhanced Grunt 19951 | -5/Proximity Caves | Destroyed B-75 Beast 19977 | -5/Proximity Caves | Core integrity fell below 50% 20044 | -5/Proximity Caves | Learned 4 Factory zone layouts 20335 | -5/Proximity Caves | Learned Factory security intel 20940 | -5/Proximity Caves | Discovered new exit (range 13) 21192 | -5/Proximity Caves | Entered Factory 21192 | -5/Factory | Accompanied by 1 ally 21192 | -5/Factory | Evolved 2 slots: Utility x2 21193 | -5/Factory | Identified exit to Factory 21353 | -5/Factory | Spotted B-75 Beast 21438 | -5/Factory | Sucked down chute 21438 | -5/Factory | Entered Waste 21450 | -5/Waste | Spotted C-40 Crusher 21453 | -5/Waste | EMP discharged 21453 | -5/Waste | System corruption reached 10% 21470 | -5/Waste | Spotted C-40 Crusher 21473 | -5/Waste | Spotted C-40 Crusher 21553 | -5/Waste | EMP discharged 21569 | -5/Waste | Discovered new exit (range 16) 21573 | -5/Waste | Spotted C-40 Crusher 21589 | -5/Waste | Entered Factory 21825 | -5/Factory | Retrieved Zion intel report: Active Garrisons 21963 | -5/Factory | Discovered exit to Factory (range 24) 22267 | -5/Factory | Lost 6 parts (3n2u1w) 22299 | -5/Factory | Retrieved Zion intel report: Trap Installations 22300 | -5/Factory | Zion Heavy squad teleported in 22322 | -5/Factory | Zion Heavy squad teleported in 22462 | -5/Factory | Discovered exit to Factory (range 16) 22518 | -5/Factory | Found Prototype Protection 22518 | -5/Factory | Identified Zio. Weapon Casing 22523 | -5/Factory | Found Prototype Protection 22523 | -5/Factory | Identified Zio. Heavy Carapace 22662 | -5/Factory | Found Zio. Weapon Casing 22681 | -5/Factory | Zion Light squad teleported in 22927 | -5/Factory | Zion Light squad teleported in 22967 | -5/Factory | Found Zio. Weapon Casing 23107 | -5/Factory | Terminal network hard line cut 23109 | -5/Factory | Discovered exit to Factory (range 24) 23115 | -5/Factory | Found Zio. Weapon Casing 23251 | -5/Factory | P-70 Sage assimilated allied 9Y-MJI(z) 23253 | -5/Factory | P-70 Sage assimilated allied SG-PQ8(z) 23298 | -5/Factory | Found Zio. Weapon Casing 23389 | -5/Factory | First assault squad dispatched 23415 | -5/Factory | Incoming assault squad redirected 23558 | -5/Factory | Discovered new exit (range 74) 23668 | -5/Factory | Found Prototype Launcher 23669 | -5/Factory | Identified Mni. Smartbomb Launcher 23739 | -5/Factory | Entered Upper Caves 24175 | -5/Upper Caves | Learned 4 Factory zone layouts 24279 | -5/Upper Caves | Learned Research stockpile data 24279 | -5/Upper Caves | Learned Extension stockpile data 24279 | -5/Upper Caves | Learned Armory stockpile data 24279 | -5/Upper Caves | Learned Armory terminal intel 24313 | -5/Upper Caves | Learned 4 Factory zone layouts 24592 | -5/Upper Caves | Learned Factory emergency access door positions 24730 | -5/Upper Caves | Discovered new exit (range 23) 24762 | -5/Upper Caves | Attracted the attention of an 0b10 base 24812 | -5/Upper Caves | Learned location of 1 exit from Factory 24812 | -5/Upper Caves | Learned 8 Research zone layouts 25309 | -5/Upper Caves | Entered another Upper Caves area 25318 | -5/Upper Caves | Discovered exit to Factory (range 10) 25394 | -5/Upper Caves | Core integrity fell below 50% 25751 | -5/Upper Caves | Spotted B-75 Beast 26049 | -5/Upper Caves | Attracted the attention of an 0b10 checkpoint 26212 | -5/Upper Caves | Lost 4 parts (1p1n1u1w) 26215 | -5/Upper Caves | Learned 4 Factory zone layouts 26259 | -5/Upper Caves | Discovered new exit (range 24) 26397 | -5/Upper Caves | Lost 5 parts (1p3n1w) 26668 | -5/Upper Caves | Build established: Mutant 27122 | -5/Upper Caves | Build established: Scavenger-Mutant 27268 | -5/Upper Caves | Encountered a Warlord checkpoint 27558 | -5/Upper Caves | Entered Warlord 27625 | -5/Warlord | System corruption cleaned by Quarantine Array 28428 | -5/Warlord | Learned Quarantine trap positions 28428 | -5/Warlord | Learned Testing stockpile data 28431 | -5/Warlord | Learned 4 Armory zone layouts 28431 | -5/Warlord | Learned 4 Armory zone layouts 28433 | -5/Warlord | Learned Research fabricator intel 28433 | -5/Warlord | Learned Research recycling unit intel 28433 | -5/Warlord | Learned Research scanalyzer intel 28565 | -5/Warlord | Found Prototype Device 28565 | -5/Warlord | Identified Exp. Cloaking Device 28572 | -5/Warlord | Found Prototype Reactor 28572 | -5/Warlord | Identified Vortex Chain Reactor 28585 | -5/Warlord | Found Prototype Device 28585 | -5/Warlord | Identified Exp. Focal Shield 28588 | -5/Warlord | Found Prototype Processor 28699 | -5/Warlord | Visited the Vortex Lab 28708 | -5/Warlord | Found Prototype Piercing Weapon 28708 | -5/Warlord | Identified Vortex Lance 28713 | -5/Warlord | Found Prototype Energy Cannon 28713 | -5/Warlord | Identified Vortex Cannon 28717 | -5/Warlord | Found Vortex Cannon 28722 | -5/Warlord | Found Prototype Energy Gun 28725 | -5/Warlord | Found Prototype Energy Gun 28740 | -5/Warlord | Identified Exp. Armor Integrity Analyzer 28813 | -5/Warlord | Found Prototype Device 28858 | -5/Warlord | Warlord's base attacked by MAIN.C 28899 | -5/Warlord | Rebuked by Warlord 28935 | -5/Warlord | Identified Vortex Rail (x2) 29208 | -5/Warlord | Warlord forces counterattacked 29227 | -5/Warlord | P-70 Sage assimilated allied 4O-6BY(g) 29302 | -5/Warlord | Spotted Executioner 29310 | -5/Warlord | Spotted Executioner 29316 | -5/Warlord | Found Prototype Processor 29316 | -5/Warlord | Identified Exp. Targeting Computer 29324 | -5/Warlord | Spotted Executioner 29336 | -5/Warlord | Discovered new exit (range 14) 29354 | -5/Warlord | Entered Proximity Caves 29461 | -4/Proximity Caves | Core integrity fell below 20% 29508 | -4/Proximity Caves | Destroyed 9 combat bots 30026 | -4/Proximity Caves | Discovered exit to Factory (range 8) 30032 | -4/Proximity Caves | Entered Factory 30032 | -4/Factory | Evolved 2 slots: Utility x2 30033 | -4/Factory | Identified exit to Research 30033 | -4/Factory | Identified exit to Extension 30074 | -4/Factory | Found Quantum Capacitor 30088 | -4/Factory | Entered Extension 30171 | -4/Extension | Rescued a captive Derelict 30185 | -4/Extension | Retrieved Zion intel report: Trap Installations 30186 | -4/Extension | Zion Light squad teleported in 30215 | -4/Extension | Rescued a captive Derelict 30250 | -4/Extension | Rescued a captive Derelict 30277 | -4/Extension | Rescued a captive Derelict 30277 | -4/Extension | Rescued a captive Derelict 30509 | -4/Extension | Spotted B-86 Titan 30520 | -4/Extension | Allies destroyed B-86 Titan 30522 | -4/Extension | Spotted B-86 Titan 30526 | -4/Extension | Destroyed B-86 Titan 30553 | -4/Extension | Rescued A7 30773 | -4/Extension | Rescued a captive Derelict 30773 | -4/Extension | Rescued a captive Derelict 30816 | -4/Extension | Zion Infowar Resupply teleported in 30977 | -4/Extension | Zion Melee Resupply teleported in 30998 | -4/Extension | Zion Kinetic Resupply teleported in 31039 | -4/Extension | Retrieved Zion intel report: Depthwide Sectors/-1 31089 | -4/Extension | Discovered exit to Research (range 10) 31090 | -4/Extension | Discovered new exit (range 6) 31118 | -4/Extension | Build established: Commander-Mutant 31158 | -4/Extension | Entered Cetus 31158 | -4/Cetus | Accompanied by 20 allies (A7) 31163 | -4/Cetus | Acquired a Cetus Manufacturing Module code from A7 31175 | -4/Cetus | Spotted Cetus Guard 31177 | -4/Cetus | Spotted Cetus Guard 31177 | -4/Cetus | Spotted Cetus Guard 31183 | -4/Cetus | Spotted Cetus Guard 31185 | -4/Cetus | Allies destroyed Cetus Guard 31187 | -4/Cetus | Allies destroyed Cetus Guard 31188 | -4/Cetus | Allies destroyed Cetus Guard 31192 | -4/Cetus | Allies destroyed Cetus Guard 31238 | -4/Cetus | Escorted A7 to Cetus Mainframe 31327 | -4/Cetus | Started Cetus Manufacturing Module 31340 | -4/Cetus | Discovered new exit (range 16) 31352 | -4/Cetus | Manufactured an Enhanced Grunt 31357 | -4/Cetus | Spotted Cetus Guard 31357 | -4/Cetus | Spotted Cetus Guard 31360 | -4/Cetus | Spotted Cetus Guard 31361 | -4/Cetus | Spotted Cetus Guard 31369 | -4/Cetus | Allies destroyed Cetus Guard 31372 | -4/Cetus | Allies destroyed Cetus Guard 31373 | -4/Cetus | Allies destroyed Cetus Guard 31375 | -4/Cetus | Allies destroyed Cetus Guard 31377 | -4/Cetus | Manufactured an Enhanced Grunt 31383 | -4/Cetus | Discovered exit to Research (range 15) 31388 | -4/Cetus | Scared off Revision 17 31402 | -4/Cetus | Manufactured an Enhanced Grunt 31427 | -4/Cetus | Manufactured an Enhanced Grunt 31441 | -4/Cetus | Entered Archives 31441 | -4/Archives | Accompanied by 10 allies (A7) 31446 | -4/Archives | Received a hacking code to weaken MAIN.C 31487 | -4/Archives | Discovered new exit (range 15) 31509 | -4/Archives | Entered Hub_04(d) 31509 | -4/Hub_04(d) | Accompanied by 5 allies 31667 | -4/Hub_04(d) | Retrieved Zion intel report: Active Garrisons 31668 | -4/Hub_04(d) | Zion Light squad teleported in 31729 | -4/Hub_04(d) | Build established: Scavenger-Mutant 31810 | -4/Hub_04(d) | Assembled infested ambush trap array 31835 | -4/Hub_04(d) | Discovered exit to Research (range 14) 31911 | -4/Hub_04(d) | Identified exit to Garrison 31911 | -4/Hub_04(d) | Entered Garrison 31911 | -4/Garrison | Accompanied by 6 allies 32054 | -4/Garrison | Triggered checkpoint 32091 | -4/Garrison | Spotted B-86 Titan 32103 | -4/Garrison | Destroyed B-86 Titan 32149 | -4/Garrison | Discovered exit to Research (range 12) 32204 | -4/Garrison | Triggered checkpoint 32276 | -4/Garrison | Triggered checkpoint 32329 | -4/Garrison | Discovered exit to Research (range 13) 32372 | -4/Garrison | Triggered checkpoint 32372 | -4/Garrison | Garrison Relay disabled 32507 | -4/Garrison | Lost 3 parts (1p1u1w) 32551 | -4/Garrison | Found Prototype Device 32551 | -4/Garrison | Identified Exp. Thermal Shield 32597 | -4/Garrison | Triggered checkpoint 32727 | -4/Garrison | Discovered exit to Research (range 10) 32789 | -4/Garrison | Spotted B-86 Titan 32789 | -4/Garrison | Spotted B-86 Titan 32992 | -4/Garrison | Triggered checkpoint 33164 | -4/Garrison | Phase Generator disabled 33324 | -4/Garrison | Garrison Relay disabled 33425 | -4/Garrison | Attempted to install RIF, but system incompatible 33469 | -4/Garrison | Attempted to access garrison exit controls, blocked by remote lockdown 33559 | -4/Garrison | Attempted to access garrison exit controls, blocked by remote lockdown 33665 | -4/Garrison | Entered Research 33665 | -3/Research | Evolved 2 slots: Propulsion x2 33666 | -3/Research | Identified exit to Quarantine 33669 | -3/Research | Loaded intel: 4 fabricator locations 33670 | -3/Research | Loaded intel: 3 recycling unit locations 33671 | -3/Research | Loaded intel: 6 scanalyzer locations 33928 | -3/Research | Entered Quarantine 33929 | -3/Quarantine | Loaded intel: 22 trap records 34000 | -3/Quarantine | Retrieved Zion intel report: Trap Installations 34006 | -3/Quarantine | Identified Wardrone Bay 34086 | -3/Quarantine | Found Alien Artifact 34086 | -3/Quarantine | Identified Phase Armor 34142 | -3/Quarantine | Retrieved Zion intel report: Active Garrisons 34178 | -3/Quarantine | First assault squad dispatched 34209 | -3/Quarantine | Found Alien Slashing Weapon 34209 | -3/Quarantine | Identified Sigix Broadsword 34271 | -3/Quarantine | Found Alien Artifact 34271 | -3/Quarantine | Identified Subatomic Replicator 34347 | -3/Quarantine | Retrieved Zion intel report: Guard Positions 34354 | -3/Quarantine | Found Alien Artifact 34354 | -3/Quarantine | Identified Core Reset Matrix 34354 | -3/Quarantine | Used Core Reset Matrix 34358 | -3/Quarantine | Detected hypermatrix surge 34358 | -3/Quarantine | Sensed 6 artifacts in vicinity 34394 | -3/Quarantine | Met incapacitated Sigix Warrior 34394 | -3/Quarantine | Lockdown squad dispatched 34450 | -3/Quarantine | Spotted Lightning 34453 | -3/Quarantine | Spotted Lightning 34511 | -3/Quarantine | Retrieved Zion intel report: Emergency Access 34524 | -3/Quarantine | Discovered new exit (range 14) 34589 | -3/Quarantine | Entered Research 34589 | -2/Research | Evolved 2 slots: Power x1, Utility x1 34615 | -2/Research | Discovered new exit (range 6) 34619 | -2/Research | Lost 5 parts (1p3n1w) 34933 | -2/Research | Lost 3 parts (2n1u) 34964 | -2/Research | Spotted B-90 Cyclops 35081 | -2/Research | Found Prototype Device 35083 | -2/Research | Found Prototype Device 35085 | -2/Research | Found Prototype Device 35091 | -2/Research | Found Quantum Capacitor 35093 | -2/Research | Identified Exp. Force Field (x3) 35096 | -2/Research | Found Faulty Exp. Force Field 35134 | -2/Research | Retrieved Zion intel report: Trap Installations 35151 | -2/Research | System corruption reached 10% 35206 | -2/Research | Spotted B-90 Cyclops 35426 | -2/Research | Retrieved Zion intel report: Guard Positions 35427 | -2/Research | Zion Thermal Resupply teleported in 35546 | -2/Research | Lost 3 parts (1p1n1u) 35566 | -2/Research | Entered Testing 35568 | -2/Testing | Protovariant out of control (PX-5VKEYKSEZF) 35586 | -2/Testing | Incoming assault squad redirected 35626 | -2/Testing | Retrieved Zion intel report: Trap Installations 35661 | -2/Testing | Found Prototype Energy Gun 35662 | -2/Testing | Identified Hyp. EM Gauss Rifle 35681 | -2/Testing | Found Prototype Launcher 35681 | -2/Testing | Identified Gui. Micro-nuke Launcher 35770 | -2/Testing | Retrieved Zion intel report: Guard Positions 35785 | -2/Testing | Retrieved Zion intel report: Main Access 35785 | -2/Testing | Identified exit to Access 35816 | -2/Testing | First assault squad dispatched 35876 | -2/Testing | Released all parts (5) 35880 | -2/Testing | Core integrity fell below 50% 35888 | -2/Testing | Incoming assault squad redirected 35907 | -2/Testing | Lost 10 parts (3p3n3u1w) 35917 | -2/Testing | Spotted PY-IR3LQKJFHI 35928 | -2/Testing | Rewired PY-IR3LQKJFHI 35963 | -2/Testing | Core integrity fell below 20% 35985 | -2/Testing | Entered Access 35985 | -1/Access | Evolved 2 slots: Utility x2 36312 | -1/Access | Energy Cycler disabled 36329 | -1/Access | Zion Heavy squad teleported in 36394 | -1/Access | Lost 7 parts (1p4n1u1w) 36430 | -1/Access | Zion Hacker squad teleported in 36449 | -1/Access | Lost 4 parts (2n1u1w) 36527 | -1/Access | Lost 3 parts (1p2n) 36528 | -1/Access | System corruption reached 10% 36531 | -1/Access | Core integrity fell below 50% 36549 | -1/Access | Self-destructed Last Messages --------------- 36454_ H-88 Terminator system terminally corrupted. 36454_ R-10 Processor collects Corrupted Unknown Ballistic Gun. 36457_ R-10 Processor collects Unknown Hackware. 36460_ R-10 Processor collects Unknown Storage. 36471_ K-01 Serf collects debris. 36480_ RHM&QEPUHTS3XV3PJE|J3RYYELFC2T5QYO 36482_ Antigrav System destroyed. 36482_ Med. Treads destroyed. 36485_ ALERT: Rogue bot located, Programmers report to Access Zone 4N. 36491_ 2L-A4R(p) destroyed. 36495_ M-36 Artificer repairs Xenon Bombardment Thruster. 36496_ Particle Reactor destroyed. 36498_ K-01 Serf collects debris. 36510_ S-43 Plague misfires. 36513_ System corrupted: Energy discharge (-37). 36521_ P-80 Master resets P-80 Master, system corruption cleaned. 36527_ P-80 Master resets S-43 Plague, system corruption cleaned. 36530_ Centrium Leg destroyed. 36533_ P-80 Master resets P-80 Master, system corruption cleaned. 36540_ System corrupted: IFF burst signal emitted. Map ----- +----------------------------------------------------+ | ?????????????????????????????????????????????? | | ??????????????????????????????????????????????# | | ??????????????????????????????????????????????# | | ??????????????????????????????????????????????# | | ??????????????????????????????????????????????# | | ??????????????????????????????????????????????# | | ?????????????????????????#????????????????????# | | ?????????????????????????# #######+############ | | ?????????????????????????# | | ?????????????????????????+ | | ?????????????????????????# | | ?????????????????????????######## ###+########+# | | ????????????????????????????????# #????????????? | | ???????????????????????#######??# #????????????? | | ???????????????????????# #### #????????????? | | ???????????????????????# #????????????? | | ???????????????????????# #????????????? | | ???????????????????????# #????????????? | | ???????????????????????# ssp########????????????? | | ???????????????????????## p##???????????????????? | | ????????????????????????# #????????????????????? | | ????????????????????????# #????????????????????? | | ????????????????????????# +????????????????????? | | ????????????????????????# #????????????????????? | | ????????????????????????# #????????????????????? | | ????????????????????#####@ #????????????????????? | | ????????????????????" #????????????????????? | | ????????????????????" #????????????????????? | | ????????????????????" #????????????????????? | | ????????????????????#########????????????????????? | | ?????????????????????????????????????????????????? | | ?????????????????????????????????????????????????? | | ?????????????????????????????????????????????????? | | ?????????????????????????????????????????????????? | | ?????????????????????????????????????????????????? | | ?????????????????????????????????????????????????? | | ?????????????????????????????????????????????????? | | ?????????????????????????????????????????????????? | | ?????????????????????????????????????????????????? | | ?????????????????????????????????????????????????? | | ?????????????????????????????????????????????????? | | ?????????????????????????????????????????????????? | | ?????????????????????????????????????????????????? | | ?????????????????????????????????????????????????? | | ?????????????????????????????????????????????????? | | ?????????????????????????????????????????????????? | | ?????????????????????????????????????????????????? | | ?????????????????????????????????????????????????? | | ?????????????????????????????????????????????????? | | ?????????????????????????????????????????????????? | +----------------------------------------------------+ Best States ------------- Heat Dissipation 94 Coolant Potential 100 Energy Generation 67 Energy Capacity 700 Matter Stores 300 Matter Capacity 300 Sight Range 20 Robot Scan Range 18 Terrain Scan Range 24 Terrain Scan Density 335 ECM Strength 1 Jamming Range 16 Cloak Strength 4 EM Shielding 3 Armor Coverage 625 Resistance: KI 30 Resistance: TH 30 Utility Shielding 33 Weapon Shielding 100 Weapon Cycling 30 Phase Shifting 15 Evasion (%) 70 Targeting Accuracy 12 Armor Integrity Analysis 30 Recoil Reduction 6 Particle Charging 25 Kinecelleration 30 Offensive Hacking 30 Item Schematics ----------------- Exp. Signal Interpreter | -2/Testing | Archive Exp. Coolant Injector | -2/Testing | Archive Adv. Variable Charge Gun | -2/Testing | Archive Imp. Quantum Reactor | -2/Testing | Archive Exp. Biometal Heavy Treads | -2/Testing | Archive Prc. Phase Gun | -2/Testing | Archive Robot Schematics ------------------ C-65 Expert | -2/Testing | Archive X-87 Electro | -2/Testing | Archive E-15 Imp | -2/Testing | Archive Fabricated ------------ Nothing Alien Tech Used ----------------- Phase Armor Sigix Broadsword Subatomic Replicator Core Reset Matrix Achievements -------------- None Challenges ------------ None Game ------ Seed ExperimentalRemoteSaw Manual? 0 Play Time 03:17:58 Cumulative 379.0 hours Start 2023.10.08 @ 14:39:35 End 2023.10.09 @ 15:37:26 Sessions 5 Manual Loads 0 Difficulty Rogue Special Mode None Game No. 551 Rogue 524 Adventurer 4 Explorer 23 Win Type - Total 20 Types 14/0/2/2/1/0/0/1/0 Lore% 81 Gallery% 91 Achievement% 83 Wizard Run 0 Options --------- ASCII 0 Keyboard 1 Movement Numpad Keybinds 0 Fullscreen 1 Font 18/SmallcapsGlow Map View 76x50 Tactical HUD 1 Map Filters NONE Filters NONE Steam 1 RUN: 4f71566e-352a-466f-9edc-10ba403df576